bitfinex/quotes_BTCUSD_20260310
["timestamp","ask_amount","ask_price","bid_price","bid_amount"]
[1773131727320,0.58428503,71018.0,71008.0,0.00144]
[1773131727517,0.58428503,71016.0,71002.0,0.07041856]
[1773131727936,0.58428503,71016.0,71003.0,0.00144]
[1773131728542,0.03,71009.0,70993.0,0.07064863]
[1773131728718,0.03,71005.0,70995.0,0.00144]
[1773131729292,0.10041849,71005.0,70996.0,0.0704265]
[1773131730634,0.58428503,71003.0,70995.0,0.07186708]
[1773131731467,0.03,71001.0,70995.0,0.00144]
[1773131731672,0.03,71001.0,70995.0,0.07186741]
[1773131732402,0.03,71000.0,70995.0,0.07042741]
[1773131732609,0.3175279,71040.0,70995.0,0.07042741]
[1773131732610,0.66801048,71013.0,70995.0,0.07042741]
[1773131732752,0.07041115,71012.0,70995.0,0.07042741]
[1773131732953,0.0704128,71010.0,70995.0,0.07042741]
[1773131733158,1e-08,71025.0,70995.0,0.07042741]
[1773131733388,1e-08,71040.0,71019.0,0.61586452]
[1773131733592,0.03,71042.0,71021.0,0.55260106]
[1773131733788,0.63468642,71050.0,71021.0,0.55260106]
[1773131733991,0.07060313,71050.0,71021.0,0.55260106]
[1773131734467,0.03562,71048.0,71021.0,0.55260106]
[1773131734671,0.10599513,71048.0,71021.0,0.55260106]
[1773131735407,0.10599513,71048.0,71022.0,0.07040072]
[1773131735611,0.03562,71048.0,71023.0,0.55260106]
[1773131735818,0.03,71047.0,71023.0,0.55260106]
[1773131736427,0.0002,71042.0,71023.0,0.55260106]
[1773131736992,0.00023,71050.0,71031.0,0.55260106]
[1773131737206,0.11368017,71059.0,71032.0,0.00144]
[1773131737416,0.07057863,71075.0,71032.0,0.00144]
[1773131737417,0.59114101,71064.0,71035.0,0.55260106]
[1773131737637,0.11511305,71066.0,71035.0,0.55260106]
[1773131737846,0.03,71064.0,71034.0,0.07038882]
[1773131738046,0.03,71053.0,71035.0,0.00144]
[1773131738254,0.03,71051.0,71035.0,0.00144]
[1773131738871,0.03,71051.0,71036.0,0.55260106]
[1773131739071,0.62114101,71051.0,71035.0,0.00144]
[1773131739274,0.00144,71058.0,71035.0,0.00144]
[1773131739514,0.03,71054.0,71036.0,0.07038684]
[1773131739694,0.03,71054.0,71037.0,0.55260106]
[1773131740585,0.03,71053.0,71037.0,0.55245535]
[1773131741474,0.03,71052.0,71038.0,0.07038486]
[1773131741796,0.03,71052.0,71038.0,0.62298592]
[1773131742136,0.03,71052.0,71038.0,0.07038486]
[1773131742345,0.03,71052.0,71039.0,0.00144]
[1773131742574,0.03,71049.0,71038.0,0.07038486]
[1773131742817,0.07036519,71058.0,71041.0,0.55260106]
[1773131743014,0.11410696,71060.0,71041.0,0.55260106]
[1773131743015,0.11410706,71060.0,71041.0,0.55260106]
[1773131743199,0.63445642,71059.0,71040.0,0.00144]
[1773131743394,0.07079165,71060.0,71041.0,0.55260106]
[1773131743648,0.07036406,71059.0,71042.0,0.0703809]
[1773131743938,0.03,71056.0,71043.0,0.00144]
[1773131744840,0.03,71054.0,71044.0,0.00144]
[1773131745040,0.03,71054.0,71044.0,0.00129431]
[1773131745336,0.07036406,71059.0,71044.0,0.00129431]
[1773131745484,0.07036406,71059.0,71045.0,0.07037792]
[1773131745691,0.07036406,71059.0,71045.0,0.07023224]
[1773131745935,0.03,71058.0,71045.0,0.07023224]
[1773131746743,0.030428,71060.0,71045.0,0.07023224]
[1773131746977,0.030428,71060.0,71045.0,0.6228333]
[1773131747529,0.11367164,71067.0,71045.0,0.07008656]
[1773131747741,0.03,71071.0,71046.0,0.55260106]
[1773131748160,0.03,71071.0,71046.0,0.55245538]
[1773131748363,0.03,71065.0,71047.0,0.00144]
[1773131748561,0.03,71065.0,71048.0,0.00144]
[1773131748804,0.03,71059.0,71048.0,0.00144]
[1773131749005,0.07035183,71072.0,71049.0,0.5627979]
[1773131749191,0.07179183,71072.0,71050.0,0.5627979]
[1773131749740,0.07035387,71070.0,71049.0,0.63317186]
[1773131749941,0.03,71069.0,71049.0,0.63317186]
[1773131750360,0.07331541,71065.0,71050.0,0.00144]
[1773131750482,0.64195156,71064.0,71050.0,0.00144]
[1773131750687,0.07035387,71070.0,71050.0,0.00144]
[1773131750688,0.03,71063.0,71050.0,0.00144]
[1773131750921,0.03,71061.0,71050.0,0.00144]
[1773131751832,0.03,71061.0,71051.0,0.07037198]
[1773131752643,0.10036026,71063.0,71051.0,0.07037198]
[1773131752810,0.03,71063.0,71051.0,0.07037198]
[1773131753011,0.03,71061.0,71051.0,0.07037198]
[1773131753245,0.07331541,71059.0,71052.0,0.00144]
[1773131753514,0.07331541,71059.0,71043.0,0.07037919]
[1773131753515,0.03,71059.0,71040.0,0.07038288]
[1773131753711,0.03,71055.0,71041.0,0.00144]
[1773131754275,0.03,71055.0,71042.0,0.0703809]
[1773131754658,0.03,71054.0,71042.0,0.0703809]
[1773131754979,0.03,71054.0,71042.0,0.07023521]
[1773131755154,0.03,71052.0,71042.0,0.07023521]
[1773131755362,0.07331541,71050.0,71043.0,0.00144]
[1773131755529,0.03,71050.0,71043.0,0.00144]
[1773131755731,0.03,71050.0,71027.0,0.07039477]
[1773131755732,0.62863615,71048.0,71027.0,0.07039477]
[1773131755934,0.03,71046.0,71029.0,0.00144]
[1773131756137,0.03,71044.0,71030.0,0.07039279]
[1773131756336,0.03,71044.0,71030.0,0.22890725]
[1773131756764,0.03,71044.0,71031.0,0.5627979]
[1773131756966,0.04331541,71052.0,71031.0,0.5627979]
[1773131757182,0.03,71058.0,71031.0,0.5627979]
[1773131757384,0.03,71056.0,71031.0,0.5627979]
[1773131757604,0.03,71054.0,71031.0,0.5627979]
[1773131757812,0.04331541,71051.0,71030.0,0.22890725]
[1773131758027,0.03,71046.0,71031.0,0.00144]
[1773131758252,0.03,71046.0,71032.0,0.00144]
[1773131758468,0.03,71046.0,71028.0,0.63319069]
[1773131758807,0.07037042,71053.0,71030.0,0.15851446]
[1773131759007,0.03,71052.0,71031.0,0.5627979]
[1773131759987,0.62863615,71046.0,71032.0,0.00144]
[1773131760193,0.03,71046.0,71033.0,0.07038981]
[1773131760810,0.10037703,71046.0,71032.0,0.07183028]
[1773131761009,0.10037703,71046.0,71030.0,0.07039265]
[1773131761010,0.67195156,71040.0,71030.0,0.07039265]
[1773131761235,0.62863615,71040.0,71031.0,0.00144]
[1773131761459,0.62863615,71036.0,71021.0,0.00166]
[1773131761676,0.03,71030.0,71021.0,0.07206151]
[1773131761867,0.03,71030.0,71022.0,0.00144]
[1773131762064,0.67195156,71030.0,71022.0,0.00144]
[1773131762325,0.03,71030.0,71023.0,0.07039972]
[1773131762746,0.11370149,71037.0,71023.0,0.07039972]
[1773131762944,0.66902051,71039.0,71023.0,0.07039972]
[1773131763180,0.04331541,71036.0,71024.0,0.11000013]
[1773131763476,0.04331541,71036.0,71022.0,0.07039972]
[1773131763477,0.04331541,71032.0,71022.0,0.00144]
[1773131763655,0.04331541,71030.0,71022.0,0.00144]
[1773131763857,0.00144,71037.0,71014.0,0.0704086]
[1773131763858,0.03,71023.0,71020.0,0.00144]
[1773131764966,0.03,71024.0,71015.0,0.07040675]
[1773131765163,0.59371149,71020.0,71016.0,0.00144]
[1773131765478,0.59371149,71020.0,71017.0,0.00144]
[1773131765479,0.03,71020.0,71017.0,0.00144]
[1773131765644,0.07331541,71020.0,71017.0,0.00144]
[1773131765841,0.03,71020.0,71017.0,0.00144]
[1773131766161,0.03,71019.0,71018.0,0.00144]
[1773131767335,0.03,71024.0,71018.0,0.0718444]
[1773131767550,0.03,71024.0,71018.0,0.00144]
[1773131767791,0.07331541,71024.0,71018.0,0.00144]
[1773131768209,0.07331541,71022.0,71019.0,0.00144]
[1773131768442,0.03,71020.0,71019.0,0.00144]
[1773131769980,0.07039762,71026.0,71019.0,0.07184332]
[1773131770192,0.11214018,71059.0,71019.0,0.07184332]
[1773131770193,0.07599594,71048.0,71019.0,0.07184332]
[1773131770460,0.04331541,71041.0,71020.0,0.74350949]
[1773131770706,0.07038288,71040.0,71021.0,0.65539674]
[1773131770952,0.03,71035.0,71022.0,0.00144]
[1773131771187,0.03,71029.0,71022.0,0.00144]
[1773131771431,0.00144,71039.0,71015.0,0.07040766]
[1773131771432,0.03,71023.0,71015.0,0.07040766]
[1773131771663,0.03,71023.0,71016.0,0.00144]
[1773131771914,0.07331541,71023.0,71016.0,0.00144]
[1773131772346,0.03,71023.0,71017.0,0.00144]
[1773131772624,0.07182486,71039.0,71018.0,0.07040468]
[1773131772866,0.11370027,71038.0,71018.0,0.07040468]
[1773131773115,0.04331541,71037.0,71018.0,0.07040468]
[1773131773654,0.03,71029.0,71019.0,0.00144]
[1773131773909,0.03,71027.0,71019.0,0.00144]
[1773131774629,0.03,71027.0,71020.0,0.0704027]
[1773131775031,0.03,71025.0,71019.0,0.07184333]
[1773131776281,0.03,71023.0,71020.0,0.00144]
[1773131776530,0.03,71021.0,71020.0,0.0718427]
[1773131777191,0.03,71021.0,71020.0,0.00144]
[1773131777394,0.59371149,71021.0,71017.0,0.07040468]
[1773131777551,0.03,71019.0,71018.0,0.00144]
[1773131777756,0.59371149,71019.0,71018.0,0.00144]
[1773131777981,0.6370269,71019.0,71018.0,0.00144]
[1773131778395,0.07331541,71019.0,71018.0,0.00144]
[1773131778956,0.6370269,71019.0,71018.0,0.00144]
[1773131780319,0.59371149,71019.0,71013.0,0.07040921]
[1773131780524,0.07331541,71017.0,71014.0,0.07184865]
[1773131780731,0.03,71016.0,71015.0,0.00144]
[1773131780940,0.03220875,71016.0,71015.0,0.00144]
[1773131781115,0.03220875,71016.0,71010.0,0.07041261]
[1773131781315,0.03,71013.0,71011.0,0.00144]
[1773131781574,0.03,71009.0,71005.0,0.00144]
[1773131781776,0.06476696,71006.0,71005.0,0.00144]
[1773131782409,0.06476696,71006.0,71000.0,0.00045]
[1773131782597,0.03,71004.0,71000.0,0.07087245]
[1773131782821,0.03,71002.0,70998.0,0.00144]
[1773131783024,0.62847845,71000.0,70999.0,0.00144]
[1773131783226,0.07042186,71001.0,70991.0,1e-08]
[1773131783227,0.03,70998.0,70991.0,1e-08]
[1773131783430,0.03,70994.0,70985.0,0.07065691]
[1773131783653,0.03,70992.0,70985.0,0.07065691]
[1773131784171,0.06476696,70992.0,70986.0,0.00144]
[1773131784565,0.03,70991.0,70985.0,0.07065688]
[1773131784894,0.03,70991.0,70986.0,0.00144]
[1773131785293,0.03,70991.0,70987.0,0.07043543]
[1773131785715,0.07042352,70999.0,70987.0,0.07043543]
[1773131785914,0.07041559,71007.0,70989.0,0.03162725]
[1773131786126,0.07041559,71007.0,70989.0,0.58499503]
[1773131786332,0.10517677,71013.0,70991.0,0.03162725]
[1773131786483,0.10517677,71013.0,70990.0,0.15851446]
[1773131786484,0.03476696,71021.0,71000.0,0.03162725]
[1773131786716,0.03476696,71021.0,70997.0,0.15851446]
[1773131786717,0.03476696,71021.0,71003.0,0.58499503]
[1773131786937,0.03476696,71021.0,71003.0,0.61671291]
[1773131787720,0.10516897,71021.0,71004.0,0.07041856]
[1773131787923,0.10516897,71021.0,71005.0,0.00144]
[1773131789162,0.0302,71023.0,71005.0,0.00144]
[1773131789386,0.07037878,71045.0,71012.0,0.58499503]
[1773131789681,0.03476696,71039.0,71014.0,0.07040865]
[1773131789879,0.03476696,71037.0,71014.0,0.07040865]
[1773131790080,0.03476696,71035.0,71014.0,0.07040865]
[1773131790252,0.59847845,71035.0,71014.0,0.07040865]
[1773131790434,0.03,71034.0,71014.0,0.07040865]
[1773131791059,0.62847845,71030.0,71014.0,0.07040865]
[1773131791828,0.62847845,71030.0,71015.0,0.00144]
[1773131792034,0.03,71029.0,71015.0,0.00144]
[1773131792339,0.03,71029.0,71016.0,0.00144]
[1773131792540,0.06476696,71027.0,71016.0,0.00144]
[1773131793167,0.03,71027.0,71016.0,0.00144]
[1773131793513,0.03,71026.0,71016.0,0.00144]
[1773131794179,0.03476696,71023.0,71002.0,0.20745474]
[1773131794371,0.03,71022.0,71005.0,0.61301647]
[1773131794670,0.03,71022.0,71004.0,0.07041559]
[1773131794671,0.03476696,71031.0,71012.0,0.03258285]
[1773131794818,0.10515929,71031.0,71013.0,0.58187362]
[1773131795022,0.65076765,71031.0,71012.0,0.03258285]
[1773131795232,0.00023,71025.0,71020.0,0.00562]
[1773131795510,0.00023,71025.0,71021.0,0.00144]
[1773131796271,0.07039115,71032.0,71022.0,0.07040072]
[1773131796272,0.03,71028.0,71022.0,0.07040072]
[1773131797352,0.03,71027.0,71022.0,0.07040072]
[1773131798120,0.0705898,71034.0,71022.0,0.07040072]
[1773131798253,0.0002,71034.0,71022.0,0.10023074]
[1773131798454,0.03,71033.0,71022.0,0.10023074]
[1773131799069,0.03,71033.0,71022.0,0.07040072]
[1773131799519,0.0705889,71034.0,71022.0,0.07040072]
[1773131799520,0.06589299,71031.0,71022.0,0.07040072]
[1773131799732,0.0705889,71034.0,71006.0,0.07063581]
[1773131799733,0.58037532,71025.0,71006.0,0.07063581]
[1773131799954,0.03,71023.0,71007.0,0.00144]
[1773131800194,0.03,71021.0,71000.0,0.07065221]
[1773131800403,0.03,71017.0,71004.0,0.00144]
[1773131801369,0.03,71016.0,71004.0,0.00144]
[1773131801572,0.03,71016.0,71010.0,0.00022]
[1773131801774,0.06589299,71016.0,71011.0,0.00144]
[1773131802005,0.03,71014.0,71011.0,0.00144]
[1773131802304,0.03,71012.0,71010.0,0.00166]
[1773131802677,0.686672,71021.0,71010.0,0.00166]
[1773131802678,0.07039981,71023.0,71010.0,0.07207236]
[1773131802881,0.07039785,71025.0,71010.0,0.07207236]
[1773131802882,0.07039785,71025.0,71010.0,0.10956932]
[1773131803378,0.03,71024.0,71010.0,0.10956932]
[1773131803581,0.03,71024.0,71010.0,0.07207236]
[1773131803954,0.03,71024.0,71011.0,0.58043362]
[1773131804159,0.03,71023.0,71013.0,0.07040964]
[1773131804356,0.03,71023.0,71014.0,0.03749696]
[1773131804584,0.03,71023.0,71013.0,0.07040964]
[1773131805173,0.03,71022.0,71010.0,0.07063224]
[1773131805380,0.03,71020.0,71011.0,0.00144]
[1773131806145,0.03,71020.0,71014.0,0.001]
[1773131806288,0.03,71020.0,71011.0,0.00144]
[1773131806289,0.10040289,71020.0,71012.0,0.07040971]
[1773131806485,0.10040289,71020.0,71011.0,0.00144]
[1773131806759,0.58037532,71015.0,71003.0,0.0706393]
[1773131806931,0.64626831,71013.0,71004.0,0.00144]
[1773131807313,0.03,71013.0,71004.0,0.00144]
[1773131807558,0.03,71013.0,71003.0,0.0706393]
[1773131807732,0.58037532,71012.0,71003.0,0.00022]
[1773131807949,0.03,71011.0,71003.0,0.00022]
[1773131808276,0.13630461,71011.0,71010.0,0.00022]
[1773131808467,0.10041162,71011.0,71010.0,0.00022]
[1773131808869,0.10041162,71011.0,71008.0,0.00144]
[1773131809168,0.03,71007.0,71003.0,0.00144]
[1773131809317,0.07041162,71011.0,71003.0,0.00144]
[1773131809318,0.03,71005.0,71003.0,0.00144]
[1773131809773,0.03,71005.0,70997.0,0.07042459]
[1773131809952,0.03,71005.0,70998.0,0.00144]
[1773131810477,0.03,71007.0,70999.0,0.00144]
[1773131811413,0.03,71007.0,71000.0,0.00144]
[1773131812311,0.03,71005.0,71001.0,0.00144]
[1773131812521,0.62941831,71001.0,71000.0,0.00144]
[1773131812723,0.66698147,71001.0,71000.0,0.00144]
[1773131812914,0.66698147,71001.0,70992.0,0.00562]
[1773131812915,0.62941831,71001.0,70992.0,0.00562]
[1773131813136,0.06756316,70997.0,70996.0,0.00144]
[1773131813415,0.03,70997.0,70996.0,0.00144]
[1773131813867,0.03,70997.0,70993.0,0.00144]
[1773131814066,0.03,70989.0,70988.0,0.00144]
[1773131814303,0.03751316,70989.0,70984.0,0.00144]
[1773131814469,0.10794705,70989.0,70984.0,0.00144]
[1773131814666,0.07043389,70989.0,70984.0,0.00144]
[1773131815276,0.07043389,70989.0,70983.0,0.00022]
[1773131815780,0.07043389,70989.0,70984.0,0.00144]
[1773131815957,0.03,70987.0,70984.0,0.00166]
[1773131816559,0.03,70987.0,70984.0,0.00022]
[1773131816560,0.10043625,70987.0,70984.0,0.00022]
[1773131816823,0.10043625,70987.0,70985.0,0.00144]
[1773131817001,0.13799941,70987.0,70985.0,0.00144]
[1773131817293,0.03,70985.0,70978.0,0.00022]
[1773131817508,0.66985456,70987.0,70977.0,0.00022]
[1773131817509,0.03,70981.0,70980.0,0.00144]
[1773131817697,0.03,70981.0,70977.0,0.07066518]
[1773131817899,0.03,70981.0,70980.0,0.00144]
[1773131818125,0.03,70981.0,70977.0,0.00022]
[1773131818328,0.03,70981.0,70978.0,0.00144]
[1773131818652,0.03,70979.0,70975.0,0.07067716]
[1773131818806,0.03,70979.0,70976.0,0.00144]
[1773131819727,0.07044073,70982.0,70978.0,0.03]
[1773131820292,0.10800389,70982.0,70978.0,0.03]
[1773131820712,0.03,70981.0,70978.0,0.03]
[1773131820913,0.07043806,70985.0,70978.0,0.03]
[1773131821256,0.07043806,70985.0,70976.0,0.00144]
[1773131821460,0.10800122,70985.0,70976.0,0.00144]
[1773131821667,0.03,70984.0,70976.0,0.00144]
[1773131821861,0.07043806,70985.0,70958.0,0.0706141]
[1773131821862,0.03,70978.0,70958.0,0.0706141]
[1773131822052,0.03,70968.0,70959.0,0.07046285]
[1773131822398,0.03756316,70984.0,70959.0,0.6457472]
[1773131822622,0.03756316,70984.0,70963.0,0.57528435]
[1773131822817,0.10800256,70983.0,70965.0,0.03528312]
[1773131823022,0.0704394,70983.0,70978.0,0.00022]
[1773131823293,0.06756316,70980.0,70974.0,0.00144]
[1773131823455,0.03,70978.0,70975.0,0.00144]
[1773131823803,0.0704394,70983.0,70963.0,0.07045826]
[1773131823804,0.03,70974.0,70963.0,0.00022]
[1773131823952,0.03,70974.0,70964.0,0.00144]
[1773131824576,0.03,70973.0,70965.0,0.07045726]
[1773131825002,0.07044147,70981.0,70966.0,0.03528312]
[1773131825204,0.07044147,70981.0,70967.0,0.03528312]
[1773131825399,0.07043745,70985.0,70967.0,0.61896738]
[1773131825615,0.03,70985.0,70970.0,0.03528312]
[1773131825945,0.03,70985.0,70971.0,0.00144]
[1773131826143,0.06756316,70985.0,70972.0,0.00144]
[1773131826349,0.03,70983.0,70965.0,0.07045726]
[1773131826541,0.06756316,70981.0,70966.0,0.00144]
[1773131826838,0.03,70979.0,70964.0,0.10574038]
[1773131827047,0.03,70979.0,70967.0,0.00144]
[1773131827282,0.06756316,70979.0,70966.0,0.07045528]
[1773131827408,0.06756316,70979.0,70968.0,0.00144]
[1773131827614,0.03,70979.0,70968.0,0.00144]
[1773131828447,0.03,70978.0,70968.0,0.00144]
[1773131828611,0.07043585,70987.0,70968.0,0.03672312]
[1773131828816,0.03756316,70989.0,70971.0,0.03528312]
[1773131829471,0.06865234,70984.0,70972.0,0.00144]
[1773131829835,0.03,70980.0,70972.0,0.00144]
[1773131830037,0.07043146,70991.0,70970.0,0.0704523]
[1773131830253,0.58281656,70988.0,70973.0,0.00144]
[1773131830396,0.07043146,70991.0,70973.0,0.00144]
[1773131830397,0.03865234,70985.0,70973.0,0.00144]
[1773131830597,0.0002,70979.0,70974.0,0.00144]
[1773131830821,0.0002,70979.0,70975.0,0.00144]
[1773131830822,0.03865234,70976.0,70975.0,0.00144]
[1773131831025,0.03865234,70976.0,70962.0,0.07045984]
[1773131831026,0.03,70974.0,70971.0,0.00144]
[1773131831230,0.06865234,70972.0,70957.0,0.07046521]
[1773131831433,0.06865234,70972.0,70958.0,0.00144]
[1773131833055,0.13910272,70972.0,70959.0,0.07046322]
[1773131833212,0.13910272,70972.0,70959.0,0.07190322]
[1773131833406,0.06865234,70972.0,70959.0,0.07190322]
[1773131833816,0.06865234,70972.0,70959.0,0.07046322]
[1773131834017,0.06865234,70972.0,70960.0,0.00144]
[1773131834640,0.03,70972.0,70960.0,0.00144]
[1773131835448,0.07044617,70977.0,70962.0,0.58368426]
[1773131835652,0.07044617,70977.0,70963.0,0.02875912]
[1773131835851,0.07044617,70977.0,70964.0,0.02875912]
[1773131836322,0.58281656,70976.0,70965.0,0.00144]
[1773131836534,0.03,70969.0,70965.0,0.00144]
[1773131836734,0.03865234,70972.0,70966.0,0.00144]
[1773131837057,0.03865234,70972.0,70967.0,0.00144]
[1773131837290,0.6214689,70972.0,70967.0,0.00144]
[1773131837492,0.6214689,70972.0,70959.0,0.07046322]
[1773131837493,0.03865234,70970.0,70951.0,0.07047115]
[1773131837713,0.03,70968.0,70956.0,0.00022]
[1773131837866,0.58281656,70969.0,70956.0,0.00022]
[1773131837867,0.06865234,70966.0,70956.0,0.00022]
[1773131838271,0.03,70966.0,70957.0,0.00144]
[1773131838480,0.0704517,70971.0,70949.0,0.00022]
[1773131838481,0.03,70958.0,70949.0,0.00022]
[1773131838715,0.03,70950.0,70942.0,0.00022]
[1773131838956,0.03865234,70953.0,70943.0,0.00144]
[1773131839100,0.03860234,70953.0,70943.0,0.00144]
[1773131839428,0.58281656,70957.0,70942.0,0.07069959]
[1773131839429,0.03865234,70949.0,70944.0,0.00144]
[1773131839584,0.07047216,70950.0,70944.0,0.00144]
[1773131839585,0.03,70946.0,70944.0,0.00144]
[1773131839785,0.07046956,70953.0,70944.0,0.00144]
[1773131839985,0.07046931,70953.0,70944.0,0.00144]
[1773131840796,0.07046931,70953.0,70942.0,0.10345411]
[1773131840797,0.03,70950.0,70942.0,1e-08]
[1773131841000,0.07046931,70953.0,70929.0,0.00022]
[1773131841001,0.03,70944.0,70938.0,0.00144]
[1773131841220,0.06865234,70944.0,70938.0,0.00144]
[1773131841418,0.13913096,70944.0,70938.0,0.00144]
[1773131842524,0.03,70938.0,70929.0,0.00022]
[1773131842733,0.03,70938.0,70922.0,0.16593035]
[1773131842734,0.03,70932.0,70922.0,0.00144]
[1773131842927,0.00144,70942.0,70916.0,0.21793474]
[1773131842928,0.03,70926.0,70923.0,0.00144]
[1773131843131,0.61281656,70924.0,70914.0,0.07050769]
[1773131843347,0.03,70920.0,70909.0,0.07051291]
[1773131843678,0.03,70918.0,70910.0,0.00144]
[1773131843806,0.03,70916.0,70911.0,0.00144]
[1773131844007,0.1091518,70923.0,70912.0,0.00144]
[1773131844207,0.1091518,70923.0,70914.0,0.001]
[1773131844646,0.07049872,70924.0,70912.0,0.00144]
[1773131844940,0.03,70924.0,70912.0,0.00144]
[1773131845167,0.10049899,70924.0,70912.0,0.00144]
[1773131845571,0.10914599,70929.0,70913.0,0.07050893]
[1773131845777,0.07049365,70929.0,70915.0,0.61802845]
[1773131846026,0.03,70931.0,70918.0,0.03473591]
[1773131846352,0.03,70931.0,70919.0,0.58512426]
[1773131846717,1.52e-06,70936.0,70919.0,0.58512426]
[1773131846917,1.52e-06,70936.0,70922.0,0.03576376]
[1773131846918,0.07048841,70936.0,70922.0,0.03576376]
[1773131847120,0.07048841,70936.0,70923.0,0.61944802]
[1773131847121,0.03,70935.0,70923.0,0.61944802]
[1773131847345,0.03,70935.0,70924.0,0.03576376]
[1773131847545,0.03,70935.0,70926.0,0.070496]
[1773131847747,0.07047916,70943.0,70928.0,0.58368426]
[1773131847949,0.07047916,70943.0,70929.0,0.0701832]
[1773131848124,0.03,70942.0,70929.0,0.0701832]
[1773131849493,0.03,70942.0,70898.0,0.03500408]
[1773131849765,0.03,70938.0,70912.0,0.0701832]
[1773131849922,0.03,70934.0,70912.0,0.0701832]
[1773131850099,0.58281656,70929.0,70909.0,0.07051234]
[1773131850442,0.61281656,70926.0,70910.0,0.00144]
[1773131850584,0.03,70926.0,70911.0,0.0701832]
[1773131850984,0.03,70926.0,70912.0,0.00144]
[1773131851189,0.03,70926.0,70913.0,0.0701832]
[1773131851454,0.0704811,70941.0,70915.0,0.0701832]
[1773131851455,0.58425656,70940.0,70915.0,0.0701832]
[1773131851669,0.07048309,70939.0,70925.0,0.0701832]
[1773131851809,0.07048309,70939.0,70926.0,0.00144]
[1773131852008,0.58281656,70938.0,70926.0,0.00144]
[1773131852260,0.03,70937.0,70926.0,0.00144]
[1773131852685,0.03,70935.0,70926.0,0.00144]
[1773131853061,0.03,70935.0,70923.0,0.07071885]
[1773131853275,0.03,70935.0,70924.0,0.00144]
[1773131853469,0.07048805,70934.0,70924.0,0.00144]
[1773131853675,0.03,70933.0,70925.0,0.00144]
[1773131853917,0.03,70929.0,70926.0,0.00144]
[1773131854274,0.03,70929.0,70916.0,0.0701832]
[1773131854478,0.07048805,70934.0,70915.0,0.07072692]
[1773131854479,0.07048805,70934.0,70919.0,0.0701832]
[1773131854684,0.07048805,70934.0,70921.0,0.0701832]
[1773131854891,0.03,70933.0,70921.0,0.0701832]
[1773131855139,0.07048805,70934.0,70922.0,0.00144]
[1773131855140,0.6180881,70931.0,70922.0,0.00144]
[1773131855310,0.6180881,70931.0,70923.0,0.00144]
[1773131855515,0.6180881,70931.0,70915.0,0.07072679]
[1773131855715,0.6180881,70929.0,70916.0,0.00144]
[1773131856033,0.6180881,70929.0,70917.0,0.00144]
[1773131856398,0.6180881,70929.0,70915.0,0.07072674]
[1773131856399,0.6180881,70929.0,70916.0,0.00144]
[1773131857909,0.03,70927.0,70917.0,0.07050495]
[1773131858639,0.07049402,70928.0,70917.0,0.0701832]
[1773131858827,0.07049402,70928.0,70921.0,0.0701832]
[1773131859010,0.07049402,70928.0,70922.0,0.00144]
[1773131859443,0.72046911,70965.0,70922.0,0.00144]
[1773131859685,0.07067473,70948.0,70925.0,0.0701832]
[1773131859860,0.0002,70948.0,70932.0,0.07049004]
[1773131860086,0.0002,70948.0,70934.0,0.0701832]
[1773131860307,0.0002,70948.0,70936.0,0.5453183]
[1773131860515,0.0002,70948.0,70937.0,0.06874352]
[1773131860728,0.07045925,70963.0,70940.0,0.54675808]
[1773131860934,0.07045925,70963.0,70943.0,0.06946336]
[1773131861146,0.07607851,70964.0,70946.0,0.54675808]
[1773131861356,0.00562,70964.0,70952.0,0.06946336]
[1773131861575,0.00562,70964.0,70954.0,0.06946336]
[1773131861778,0.03048,70967.0,70956.0,0.06946336]
[1773131861987,0.03048,70967.0,70957.0,0.07046521]
[1773131862214,0.03048,70967.0,70957.0,0.13992857]
[1773131862447,0.03,70966.0,70957.0,0.13992857]
[1773131862862,0.03,70966.0,70958.0,0.06946336]
[1773131863002,0.03,70966.0,70959.0,0.00144]
[1773131863393,0.00048,70967.0,70959.0,0.00144]
[1773131863987,0.00048,70967.0,70961.0,0.07046123]
[1773131864587,0.03,70964.0,70942.0,0.06946336]
[1773131864780,0.07045627,70966.0,70943.0,0.00144]
[1773131864781,0.6180881,70962.0,70943.0,0.00144]
[1773131864940,0.6180881,70962.0,70944.0,0.06946336]
[1773131865139,0.6180881,70962.0,70946.0,0.06946336]
[1773131865796,0.6180881,70962.0,70947.0,0.00144]
[1773131866010,0.6180881,70962.0,70941.0,0.0704811]
[1773131866223,0.07257627,70967.0,70940.0,0.0704819]
[1773131866224,0.03,70960.0,70945.0,0.07047704]
[1773131866433,0.0002,70979.0,70952.0,0.54675808]
[1773131866434,0.07044672,70976.0,70952.0,0.54675808]
[1773131866665,0.07067759,70975.0,70961.0,0.06946336]
[1773131866882,0.07067759,70975.0,70963.0,0.06946336]
[1773131866883,0.00023,70975.0,70963.0,0.06946336]
[1773131867036,0.07064896,70974.0,70963.0,0.06946336]
[1773131867252,0.03,70973.0,70963.0,0.06946336]
[1773131868067,0.03,70973.0,70965.0,0.07045726]
[1773131868264,0.0002,70974.0,70965.0,0.07045726]
[1773131868732,0.03,70973.0,70965.0,0.07045726]
[1773131868923,0.03,70973.0,70966.0,0.06946336]
[1773131869102,0.00023,70975.0,70966.0,0.06946336]
[1773131869565,0.07067763,70975.0,70966.0,0.06946336]
[1773131869831,0.07067763,70975.0,70967.0,0.00144]
[1773131869832,0.03,70974.0,70967.0,0.00144]
[1773131870132,0.03,70974.0,70967.0,0.07189492]
[1773131870619,0.10044862,70974.0,70967.0,0.07189492]
[1773131871170,0.0704386,70984.0,70968.0,0.06946336]
[1773131871363,0.0704386,70984.0,70970.0,0.06946336]
[1773131871364,0.07044052,70982.0,70970.0,0.06946336]
[1773131871817,0.07044052,70982.0,70965.0,0.07045726]
[1773131871818,0.5880881,70981.0,70965.0,0.07045726]
[1773131872019,0.5880881,70981.0,70971.0,0.00144]
[1773131872172,0.03,70978.0,70971.0,0.00144]
[1773131872372,0.0002,70974.0,70971.0,0.00144]
[1773131872994,0.0002,70974.0,70972.0,0.06946336]